bitfinex-derivatives/quotes_SOLF0:USTF0_20250425
["timestamp","ask_amount","ask_price","bid_price","bid_amount"]
[1745589904172,6.4864,154.09,154.03,31.2384]
[1745589904372,27.28,154.12,154.03,31.2384]
[1745589904870,6.4865,154.09,154.03,31.2384]
[1745589905071,27.28,154.12,154.03,31.2384]
[1745589905367,54.52531803,154.15,154.03,31.2384]
[1745589905571,6.4861,154.1,154.07,6.487]
[1745589905873,54.52531803,154.15,154.04,27.24531803]
[1745589906875,27.28,154.15,154.04,27.24531803]
[1745589907070,6.4857,154.11,154.07,6.487]
[1745589907270,6.4857,154.11,154.07,27.28]
[1745589907666,27.28,154.15,154.07,27.28]
[1745589908774,6.4857,154.11,154.08,6.4867]
[1745589909275,6.4857,154.11,154.09,6.4862]
[1745589909475,6.4857,154.11,154.07,27.28]
[1745589909673,27.24531803,154.18,154.07,27.28]
[1745589909874,27.24531803,154.23,154.13,27.24531803]
[1745589910174,27.28,154.25,154.14,31.3196]
[1745589910578,6.4819,154.2,154.14,31.3196]
[1745589910777,27.28,154.25,154.18,6.4825]
[1745589910976,27.28,154.25,154.14,31.3196]
[1745589911878,27.28,154.25,154.19,6.4818]
[1745589912080,6.4813,154.21,154.18,26.88]
[1745589912278,27.28,154.25,154.18,26.88]
[1745589912577,6.481,154.22,154.18,26.88]
[1745589912779,493.92,154.28,154.18,26.88]
[1745589912970,493.92,154.28,154.19,6.4818]
[1745589913170,6.4807,154.23,154.19,6.4818]
[1745589913678,493.92,154.28,154.18,26.88]
[1745589914179,493.92,154.28,154.19,6.4819]
[1745589914770,6.4808,154.23,154.19,6.4819]
[1745589915079,493.92,154.28,154.19,6.4819]
[1745589915280,493.92,154.28,154.18,33.3623]
[1745589915674,493.92,154.28,154.19,6.4821]
[1745589915973,6.4807,154.23,154.19,6.4821]
[1745589916183,27.24531803,154.26,154.18,26.88]
[1745589916573,27.24531803,154.26,154.15,26.88]
[1745589916979,6.4822,154.19,154.15,26.88]
[1745589917174,27.24531803,154.26,154.15,26.88]
[1745589917382,27.24531803,154.26,154.15,33.3637]
[1745589917573,6.4824,154.19,154.15,33.3637]
[1745589917775,26.88,154.24,154.15,33.3637]
[1745589918080,6.4823,154.19,154.15,33.3637]
[1745589918280,6.4823,154.19,154.16,6.4831]
[1745589918579,6.4823,154.19,154.15,26.88]
[1745589918881,6.4814,154.21,154.15,26.88]
[1745589919083,26.88,154.27,154.16,27.24531803]
[1745589919284,6.4802,154.24,154.2,6.4814]
[1745589919678,2.0227,154.29,154.19,54.12531803]
[1745589919972,2.0227,154.29,154.19,26.88]
[1745589920487,2.0227,154.29,154.22,6.4806]
[1745589920676,2.0227,154.29,154.19,26.88]
[1745589921179,26.88,154.3,154.19,26.88]
[1745589921374,27.24531803,154.32,154.21,27.24531803]
[1745589921580,30.7689,154.33,154.22,3.8043]
[1745589921880,6.4791,154.27,154.23,26.88]
[1745589922073,6.4791,154.27,154.23,33.3603]
[1745589922377,6.4782,154.29,154.23,26.88]
[1745589922576,28.7528,154.33,154.24,33.72511803]
[1745589922882,6.4798,154.25,154.23,26.88]
[1745589923583,27.24531803,154.32,154.23,26.88]
[1745589924082,28.7528,154.33,154.23,26.88]
[1745589924285,28.7528,154.33,154.24,6.4798]
[1745589924481,6.4799,154.25,154.22,3.8043]
[1745589924679,27.24531803,154.32,154.22,3.8043]
[1745589925383,27.24531803,154.32,154.22,10.2847]
[1745589925577,6.4789,154.27,154.22,30.6643]
[1745589925782,27.24531803,154.32,154.22,30.6643]
[1745589926183,6.4799,154.25,154.22,30.6643]
[1745589926584,27.24531803,154.32,154.22,26.86]
[1745589926878,6.4803,154.24,154.22,26.86]
[1745589927182,6.4804,154.23,154.22,26.86]
[1745589927375,26.86,154.29,154.22,26.86]
[1745589927983,26.86,154.29,154.23,6.4804]
[1745589928184,54.10531803,154.32,154.23,6.4804]
[1745589928389,54.10531803,154.32,154.22,26.86]
[1745589929084,6.4794,154.26,154.22,33.3405]
[1745589929280,6.4794,154.26,154.22,26.86]
[1745589929584,6.4782,154.29,154.25,6.4793]
[1745589929782,26.86,154.32,154.25,6.4793]
[1745589930085,6.4781,154.29,154.25,6.4793]
[1745589930384,1.8728,154.33,154.26,6.479]
[1745589930683,1.8728,154.33,154.27,6.4786]
[1745589931181,26.86,154.36,154.28,6.478]
[1745589931382,26.86,154.36,154.26,26.86]
[1745589931684,27.24531803,154.35,154.26,33.339]
[1745589931884,26.86,154.36,154.26,26.86]
[1745589932188,6.4776,154.3,154.26,26.86]
[1745589932381,6.4776,154.3,154.27,6.4785]
[1745589932782,39.81,154.36,154.26,26.86]
[1745589932981,27.24531803,154.34,154.26,26.86]
[1745589933386,27.24531803,154.34,154.23,26.86]
[1745589934088,6.4794,154.26,154.22,54.10531803]
[1745589934290,26.86,154.31,154.18,357.001]
[1745589934482,54.10531803,154.31,154.19,26.86]
[1745589934681,6.4807,154.23,154.19,26.86]
[1745589934886,54.10531803,154.31,154.19,26.86]
[1745589935177,54.10531803,154.31,154.21,6.4811]
[1745589935379,54.10531803,154.31,154.2,27.24531803]
[1745589935687,6.4796,154.25,154.22,6.4806]
[1745589935884,6.4796,154.25,154.2,27.24531803]
[1745589936386,6.4796,154.25,154.21,6.481]
[1745589936586,6.48,154.24,154.21,6.481]
[1745589936787,54.10531803,154.31,154.19,26.86]
[1745589936989,6.4805,154.23,154.2,6.4816]
[1745589937182,54.10531803,154.31,154.2,6.4816]
[1745589937486,6.4794,154.26,154.19,26.86]
[1745589938083,6.4794,154.26,154.23,6.4804]
[1745589938284,6.4789,154.27,154.23,26.86]
[1745589938487,26.86,154.31,154.23,26.86]
[1745589939187,26.86,154.31,154.24,6.4797]
[1745589939485,6.4788,154.27,154.23,43.78461618]
[1745589939983,6.4785,154.28,154.23,43.78461618]
[1745589940285,26.86,154.31,154.23,43.78461618]
[1745589940484,26.86,154.31,154.23,50.26461618]
[1745589940687,6.4789,154.27,154.23,50.26461618]
[1745589941389,26.86,154.31,154.21,16.92461618]
[1745589941390,16.92461618,154.3,154.21,16.92461618]
[1745589941586,16.92461618,154.3,154.2,26.86]
[1745589941888,16.92461618,154.3,154.21,16.92461618]
[1745589942386,26.86,154.31,154.2,26.86]
[1745589942387,26.86,154.31,154.23,16.92461618]
[1745589942588,26.86,154.31,154.24,6.4798]
[1745589942988,26.86,154.31,154.23,16.92461618]
[1745589943687,26.86,154.31,154.2,26.86]
[1745589943688,6.48,154.24,154.21,6.4811]
[1745589944083,16.92461618,154.28,154.2,26.8]
[1745589944084,6.4809,154.22,154.2,26.8]
[1745589944292,16.92461618,154.28,154.2,26.8]
[1745589944787,16.92461618,154.26,154.18,2.001]
[1745589944993,16.92461618,154.24,154.17,1.8857]
[1745589945293,6.4812,154.22,154.18,6.4824]
[1745589945688,16.92461618,154.26,154.19,6.4818]
[1745589945885,16.92461618,154.26,154.17,18.81031618]
[1745589946393,6.4812,154.22,154.18,6.4823]
[1745589946893,6.4815,154.21,154.18,6.4823]
[1745589947293,43.72461618,154.27,154.17,18.81031618]
[1745589947495,6.4816,154.21,154.17,18.81031618]
[1745589947894,6.4816,154.21,154.17,25.29301618]
[1745589948888,3.9581,154.3,154.17,25.29301618]
[1745589948889,1.12858764,154.38,154.19,16.92461618]
[1745589949090,1.12858764,154.38,154.28,16.92461618]
[1745589949091,3.9051,154.37,154.28,16.92461618]
[1745589949292,4.2544,154.37,154.28,16.92461618]
[1745589949697,43.72461618,154.36,154.27,26.8]
[1745589949897,16.92461618,154.34,154.25,16.92461618]
[1745589950098,16.92461618,154.34,154.25,23.40411618]
[1745589950297,43.72461618,154.36,154.25,16.92461618]
[1745589950693,6.4777,154.3,154.25,16.92461618]
[1745589950893,16.92461618,154.34,154.25,16.92461618]
[1745589951299,16.92461618,154.32,154.23,43.72461618]
[1745589952197,6.4786,154.28,154.23,43.72461618]
[1745589952497,16.92461618,154.32,154.23,43.72461618]
[1745589952699,6.4783,154.28,154.23,50.20471618]
[1745589953498,16.92461618,154.34,154.23,50.20471618]
[1745589953499,16.92461618,154.34,154.24,6.4796]
[1745589953997,6.4782,154.29,154.25,16.92461618]
[1745589955297,6.4784,154.28,154.25,16.92461618]
[1745589955598,16.92461618,154.35,154.25,23.40411618]
[1745589955794,6.4782,154.29,154.25,23.40411618]
[1745589956195,6.4785,154.28,154.25,16.92461618]
[1745589956396,6.4785,154.28,154.23,43.72461618]
[1745589956596,6.4785,154.28,154.24,6.4797]
[1745589957804,16.92461618,154.35,154.25,16.92461618]
[1745589958096,16.92461618,154.35,154.25,23.40391618]
[1745589958298,6.4781,154.29,154.25,23.40391618]
[1745589959399,6.4781,154.29,154.26,6.4791]
[1745589960200,6.4776,154.3,154.27,6.4785]
[1745589960401,16.92461618,154.35,154.27,23.40311618]
[1745589960602,16.92461618,154.35,154.27,43.72461618]
[1745589960801,16.92461618,154.35,154.27,50.20331618]
[1745589961004,4.2544,154.37,154.29,16.92461618]
[1745589961397,16.92461618,154.36,154.26,16.92461618]
[1745589961605,4.2544,154.37,154.29,26.8]
[1745589961797,6.476,154.34,154.3,6.4772]
[1745589961997,1.996,154.37,154.3,16.92461618]
[1745589962197,43.72461618,154.4,154.3,16.92461618]
[1745589962404,6.4753,154.36,154.32,6.4764]
[1745589962702,43.72461618,154.4,154.3,20.66561618]
[1745589962899,16.92461618,154.38,154.3,3.741]
[1745589963100,16.92461618,154.36,154.29,26.8]
[1745589963404,16.92461618,154.34,154.29,26.8]
[1745589963903,6.4772,154.31,154.29,26.8]
[1745589964204,16.92461618,154.34,154.29,26.8]
[1745589964403,6.4771,154.31,154.29,26.8]
[1745589964802,16.92461618,154.34,154.29,26.8]
[1745589964997,6.4769,154.32,154.29,26.8]
[1745589965198,43.72461618,154.36,154.29,26.8]
[1745589965403,43.72461618,154.36,154.29,33.2777]
[1745589965404,6.4762,154.33,154.29,33.2777]
[1745589965608,16.92461618,154.34,154.29,26.8]
[1745589965905,26.8,154.36,154.26,510.22461618]
[1745589966109,6.4769,154.32,154.28,6.4781]
[1745589966300,16.92461618,154.33,154.26,493.3]
[1745589966498,6.4771,154.31,154.27,6.4787]
[1745589966802,16.92461618,154.33,154.26,493.3]
[1745589967006,6.4773,154.31,154.27,6.4787]
[1745589967411,16.92461618,154.33,154.26,493.3]
[1745589967704,16.92461618,154.37,154.27,16.92461618]
[1745589967905,2.0357,154.43,154.36,16.92461618]
[1745589968406,2.0357,154.43,154.36,23.39951618]
[1745589968903,2.0357,154.43,154.37,6.4744]
[1745589969105,2.0357,154.43,154.36,16.92461618]
[1745589970212,16.92461618,154.46,154.35,3.844]
[1745589970213,6.4706,154.47,154.43,6.472]
[1745589970511,16.92461618,154.5,154.41,16.92461618]
[1745589970712,1.8581,154.51,154.36,466.36]
[1745589970713,16.92461618,154.48,154.36,466.36]
[1745589971009,16.92461618,154.46,154.37,43.70461618]
[1745589971721,43.70461618,154.48,154.37,43.70461618]
[1745589972015,6.472,154.43,154.37,43.70461618]
[1745589972315,6.4726,154.42,154.37,43.70461618]
[1745589972515,16.92461618,154.46,154.37,43.70461618]
[1745589972918,6.4727,154.42,154.37,43.70461618]
[1745589973217,16.92461618,154.46,154.37,43.70461618]
[1745589973413,6.4728,154.42,154.37,43.70461618]
[1745589973619,16.92461618,154.46,154.37,43.70461618]
[1745589973815,43.70461618,154.48,154.39,16.92461618]
[1745589974318,26.78,154.48,154.39,16.92461618]
[1745589974620,6.4713,154.45,154.4,6.473]
[1745589974821,26.78,154.48,154.41,43.70461618]
[1745589975119,28.6381,154.51,154.43,16.92461618]
[1745589975321,6.4706,154.47,154.43,16.92461618]
[1745589975518,28.6381,154.51,154.43,16.92461618]
[1745589976819,6.471,154.46,154.43,16.92461618]
[1745589977020,28.6381,154.51,154.43,16.92461618]
[1745589977319,6.4697,154.49,154.43,16.92461618]
[1745589977522,6.4697,154.49,154.44,6.4715]
[1745589977822,1.8581,154.51,154.43,16.92461618]
[1745589978025,6.4697,154.49,154.43,16.92461618]
[1745589978324,466.44,154.53,154.45,16.92461618]
[1745589978624,6.4695,154.49,154.45,43.70461618]
[1745589978819,43.70461618,154.54,154.45,43.70461618]
[1745589979922,6.4696,154.49,154.45,50.17571618]
[1745589980820,6.4692,154.5,154.46,6.4707]
[1745589981021,16.92461618,154.56,154.47,16.92461618]
[1745589981824,1.9699,154.57,154.47,16.92461618]
[1745589982123,16.92461618,154.6,154.5,16.92461618]
[1745589982317,16.92461618,154.6,154.51,30.5456]
[1745589982523,6.4664,154.57,154.52,43.68461618]
[1745589982824,16.92461618,154.6,154.52,43.68461618]
[1745589983024,6.4658,154.58,154.53,6.4675]
[1745589983523,6.4654,154.59,154.54,23.39181618]
[1745589984029,1.1261407,154.72,154.56,16.92461618]
[1745589984217,303.11121788,154.83,154.71,16.92461618]
[1745589984218,75.25046456,154.79,154.71,16.92461618]
[1745589984424,303.11121788,154.83,154.78,33.84923236]
[1745589984720,201.49341341,154.86,154.81,16.92461618]
[1745589984924,378.88902236,154.91,154.85,33.84923236]
[1745589985122,275.42902236,154.95,154.9,16.92461618]
[1745589985426,444.24882683,155.01,154.94,53.60921038]
[1745589985624,444.24882683,155.01,155.0,33.25280519]
[1745589985819,454.66682683,155.16,155.0,80.34921038]
[1745589986124,585.68685644,155.16,155.04,26.80460519]
[1745589986325,64.52000961,155.12,155.04,26.80460519]
[1745589986516,129.04000961,155.05,154.95,26.80460519]
[1745589986717,64.52,155.03,154.83,34.32]
[1745589987024,64.52000961,155.0,154.92,26.80460519]
[1745589987223,92.34000961,155.0,154.92,26.80460519]
[1745589987419,92.34000961,155.0,154.77,465.64]
[1745589987420,129.04000961,154.95,154.77,27.82]
[1745589987623,27.82,154.94,154.87,43.60099584]
[1745589987825,27.82,154.94,154.81,43.60099584]
[1745589988026,64.52000961,154.87,154.78,43.60099584]
[1745589988221,64.52000961,154.88,154.78,43.60099584]
[1745589988423,62.0,154.88,154.81,43.60099584]
[1745589988729,43.60099584,155.12,154.87,43.60099584]
[1745589988927,27.78,155.03,154.94,43.60099584]
[1745589989127,64.52000961,154.99,154.91,43.60099584]
[1745589989525,64.52000961,154.97,154.95,87.52229958]
[1745589989722,27.78,154.98,154.95,87.52229958]
[1745589989923,129.04000961,154.96,154.95,87.52229958]
[1745589990119,129.04000961,154.96,154.95,30.5951407]
[1745589990321,114.58099584,154.96,154.8,43.60099584]
[1745589990629,64.52000961,154.84,154.71,465.24]
[1745589990820,92.30000961,154.83,154.71,465.24]
[1745589991024,92.30000961,154.83,154.69,43.60099584]
[1745589991025,64.52,154.8,154.69,43.60099584]
[1745589991329,129.04000961,154.77,154.66,43.60099584]
[1745589991525,64.52000961,154.74,154.63,71.38099584]
[1745589991923,116.16002961,154.74,154.63,71.38099584]
[1745589992118,51.64002,154.74,154.63,43.60099584]
[1745589992326,64.52000961,154.7,154.63,43.60099584]
[1745589992523,92.30000961,154.69,154.59,43.60099584]
[1745589992928,143.94002961,154.69,154.59,43.60099584]
[1745589993129,64.52000961,154.66,154.59,43.60099584]
[1745589993428,27.78,154.72,154.62,43.60099584]
[1745589993728,70.98120961,154.69,154.62,43.60099584]
[1745589993932,64.52000961,154.66,154.59,43.60099584]
[1745589994133,92.30000961,154.65,154.59,43.60099584]
[1745589994332,27.78,154.65,154.59,43.60099584]
[1745589994635,64.52000961,154.64,154.56,43.60099584]
[1745589995130,116.16002961,154.64,154.56,43.60099584]
[1745589995528,62.0,154.63,154.56,43.60099584]
[1745589995829,27.78,154.65,154.59,43.60099584]
[1745589996428,27.78,154.65,154.56,43.60099584]
[1745589996429,64.52000961,154.62,154.56,43.60099584]
[1745589996633,64.52000961,154.62,154.55,1.122961]
[1745589996834,70.98490961,154.6,154.53,43.60099584]
[1745589997135,156.82000961,154.61,154.53,43.60099584]
[1745589997435,125.57826769,154.61,154.53,43.60099584]
[1745589998135,27.78,154.64,154.56,43.60099584]
[1745589998335,27.78,154.63,154.59,43.60099584]
[1745589998530,105.60824103,154.64,154.59,43.60099584]
[1745589998736,62.0,154.63,154.59,43.60099584]
[1745589998937,62.0,154.63,154.56,175.69339341]
[1745589998938,53.96822103,154.57,154.56,175.69339341]
[1745589999234,146.26822103,154.57,154.56,175.69339341]
[1745589999430,6.467,154.56,154.54,85.67174805]
[1745589999629,27.78,154.57,154.54,85.67174805]
[1745590000034,6.4654,154.59,154.54,85.67174805]
[1745590000237,41.82791419,154.59,154.54,85.67174805]
[1745590000430,41.82791419,154.58,154.55,96.70291767]
[1745590000933,27.78,154.58,154.55,96.70291767]
[1745590001328,27.78,154.58,154.56,11.03116962]
[1745590001531,34.2458,154.58,154.56,11.03116962]
[1745590001728,89.78,154.58,154.56,11.03116962]
[1745590001925,27.78,154.61,154.56,11.03116962]
[1745590002134,6.4658,154.58,154.56,11.03116962]
[1745590002436,27.78,154.61,154.57,11.03116962]
[1745590002734,27.78,154.6,154.57,11.03116962]
[1745590004039,6.4653,154.59,154.58,11.03116962]
[1745590004634,27.8,154.6,154.58,11.03116962]
[1745590004836,62.0,154.59,154.58,11.03116962]
[1745590005032,68.4653,154.59,154.58,11.03116962]
[1745590005532,27.8,154.63,154.58,11.03116962]
[1745590005739,127.6834425,154.68,154.58,11.03116962]
[1745590005740,27.8,154.64,154.58,11.03116962]
[1745590006233,6.4653,154.59,154.58,11.03116962]
[1745590006433,27.8,154.64,154.58,11.03116962]
[1745590006938,6.4653,154.59,154.55,47.64199801]
[1745590007139,27.8,154.63,154.55,47.64199801]
[1745590007835,27.8,154.63,154.56,118.42027355]
[1745590008135,27.8,154.64,154.56,118.42027355]
[1745590008635,27.8,154.67,154.57,118.42027355]
[1745590009242,71.40099584,154.66,154.57,118.42027355]
[1745590010245,71.40099584,154.66,154.58,124.25266189]
[1745590010436,27.8,154.66,154.58,124.25266189]
[1745590010632,6.4653,154.59,154.58,113.16099196]
[1745590010837,6.4653,154.59,154.58,67.16301898]
[1745590011039,6.4653,154.59,154.58,61.03751898]
[1745590011237,6.4653,154.59,154.58,51.84911898]
[1745590011437,6.4653,154.59,154.51,27.8]
[1745590011438,27.8,154.61,154.5,43.60099584]
[1745590011740,62.0,154.59,154.5,43.60099584]
[1745590011938,62.0,154.59,154.53,43.60099584]
[1745590012240,27.8,154.61,154.53,43.60099584]
[1745590012241,27.8,154.61,154.53,71.40099584]
[1745590012540,6.4661,154.58,154.53,71.40099584]
[1745590013634,6.4661,154.58,154.53,77.86869584]
[1745590013834,27.8,154.61,154.53,71.40099584]
[1745590014135,27.8,154.61,154.55,6.4669]
[1745590014537,6.4653,154.6,154.53,71.40099584]
[1745590014735,6.4653,154.6,154.54,6.4671]
[1745590014940,6.4653,154.6,154.53,71.40099584]
[1745590015443,6.4653,154.6,154.57,296.95966297]
[1745590015641,27.8,154.65,154.57,296.95966297]
[1745590015834,27.8,154.66,154.57,296.95966297]
[1745590016140,6.464,154.63,154.58,6.4656]
[1745590016836,6.464,154.63,154.58,201.60561923]
[1745590017041,6.4641,154.62,154.58,201.60561923]
[1745590017343,27.66,154.66,154.58,195.14001923]
[1745590018241,62.0,154.65,154.58,195.14001923]
[1745590018442,27.66,154.66,154.59,87.82061392]
[1745590019446,62.0,154.65,154.59,87.82061392]
[1745590019646,27.66,154.65,154.59,87.82061392]
[1745590019946,6.4627,154.66,154.61,6.4642]
[1745590020245,71.26099584,154.69,154.59,87.82061392]
[1745590020438,27.66,154.69,154.6,87.82061392]
[1745590020639,60.0,154.68,154.6,87.82061392]
[1745590020848,60.0,154.68,154.61,43.60099584]
[1745590021442,27.66,154.69,154.61,43.60099584]
[1745590021845,27.66,154.69,154.6,87.82061392]
[1745590022048,6.463,154.65,154.6,94.28521392]
[1745590022345,6.463,154.65,154.6,87.82061392]
[1745590022544,6.4627,154.66,154.62,6.464]
[1745590022748,27.66,154.65,154.6,87.82061392]
[1745590023450,27.66,154.65,154.62,11.13598736]
[1745590023748,6.4636,154.63,154.62,11.13598736]
[1745590024848,6.4634,154.64,154.62,11.13598736]
[1745590025049,27.66,154.65,154.62,11.13598736]
[1745590025252,34.1229,154.65,154.62,11.13598736]
[1745590025447,27.66,154.68,154.62,11.13598736]
[1745590025950,6.4622,154.67,154.63,6.4634]
[1745590026150,217.84137381,154.7,154.63,6.4634]
[1745590026846,217.84137381,154.7,154.62,6.4639]
[1745590027048,6.4626,154.66,154.6,27.66]
[1745590027252,217.84137381,154.7,154.62,43.60099584]
[1745590027654,6.4617,154.68,154.62,43.60099584]
[1745590027853,217.84137381,154.7,154.64,6.4631]
[1745590028153,217.84137381,154.7,154.62,43.60099584]
[1745590028747,6.4618,154.68,154.65,6.4627]
[1745590029157,12.9138,154.8,154.65,71.26099584]
[1745590029452,6.46,154.72,154.69,6.4608]
[1745590029656,29.5501,154.77,154.65,27.66]
[1745590029855,43.60099584,154.75,154.65,6.4626]
[1745590030358,43.60099584,154.75,154.64,77.72419584]
[1745590030656,43.60099584,154.75,154.61,71.26099584]
[1745590031057,6.4622,154.67,154.61,71.26099584]
[1745590031255,27.66,154.72,154.61,71.26099584]
[1745590031948,20.97380499,154.74,154.64,43.60099584]
[1745590032152,6.4603,154.71,154.67,43.60099584]
[1745590032352,62.0,154.73,154.67,43.60099584]
[1745590033260,62.0,154.73,154.67,50.06289584]
[1745590034056,62.0,154.73,154.64,71.26099584]
[1745590034252,6.4616,154.68,154.63,27.66]
[1745590034857,20.97380499,154.72,154.63,27.66]
[1745590035160,27.66,154.71,154.63,27.66]
[1745590035355,190.8928746,154.64,154.61,43.60099584]
[1745590035552,190.8928746,154.64,154.61,50.06509584]
[1745590035854,190.8928746,154.64,154.6,27.66]
[1745590036059,197.3563746,154.64,154.61,6.4641]
[1745590036259,190.8928746,154.64,154.6,27.66]
[1745590036657,190.8928746,154.64,154.62,6.4638]
[1745590036853,190.8928746,154.64,154.6,27.66]
[1745590036854,93.27384156,154.69,154.61,43.60099584]
[1745590037053,91.33444156,154.69,154.64,43.60099584]
[1745590037357,91.33444156,154.69,154.65,6.4627]
[1745590037358,6.4618,154.68,154.65,6.4627]
[1745590037654,6.4618,154.68,154.64,43.60099584]
[1745590037655,91.33444156,154.69,154.61,45.50839584]
[1745590037852,91.33444156,154.69,154.61,43.60099584]
[1745590038054,71.26099584,154.71,154.6,34.1246]
[1745590038457,6.4636,154.64,154.6,34.1246]
[1745590038658,6.4636,154.64,154.61,6.4644]
[1745590039157,6.4637,154.63,154.6,34.1247]
[1745590039554,71.26099584,154.71,154.6,27.66]
[1745590039750,6.4635,154.64,154.6,27.66]
[1745590040362,6.4635,154.64,154.61,6.4641]
[1745590040662,6.4637,154.63,154.6,27.66]
[1745590040861,71.26099584,154.71,154.61,6.4642]
[1745590041065,62.0,154.7,154.6,27.66]
[1745590041261,62.0,154.7,154.62,43.60099584]
[1745590041962,62.0,154.7,154.59,43.60099584]
[1745590042262,62.0,154.7,154.59,71.26099584]
[1745590042462,62.0,154.7,154.61,6.4644]
[1745590042763,6.4638,154.63,154.59,71.26099584]
[1745590043159,62.0,154.7,154.61,6.4644]
[1745590043463,62.0,154.7,154.59,71.26099584]
[1745590043664,62.0,154.7,154.62,6.4637]
[1745590043865,62.0,154.7,154.59,71.26099584]
[1745590044360,62.0,154.7,154.63,6.4633]
[1745590044563,6.4624,154.66,154.63,6.4633]
[1745590044766,62.0,154.7,154.62,6.4638]
[1745590045371,62.0,154.7,154.61,6.4643]
[1745590045573,62.0,154.7,154.59,71.26099584]
[1745590045970,6.4633,154.64,154.61,6.4642]
[1745590046269,27.66,154.67,154.59,71.26099584]
[1745590046769,6.4635,154.64,154.61,6.4642]
[1745590046968,27.66,154.67,154.62,43.60099584]
[1745590047166,6.4626,154.66,154.64,6.4631]
[1745590047366,88.76,154.7,154.64,6.4631]
[1745590047568,6.463,154.65,154.62,50.06489584]
[1745590047768,88.76,154.7,154.59,71.26099584]
[1745590048070,6.4653,154.59,154.58,107.31940531]
[1745590049669,26.76,154.62,154.58,107.31940531]
[1745590050174,26.76,154.62,154.57,296.95966297]
[1745590050978,6.4657,154.58,154.57,296.95966297]
[1745590051976,62.0,154.61,154.57,296.95966297]
[1745590052474,6.4649,154.6,154.57,303.42556297]
[1745590052679,26.76,154.62,154.57,296.95966297]
[1745590052881,28.7482,154.65,154.57,296.95966297]
[1745590053083,6.4647,154.61,154.58,6.4653]
[1745590053274,28.7482,154.65,154.57,296.95966297]
[1745590053478,43.60099584,154.64,154.57,296.95966297]
[1745590053678,28.7482,154.65,154.57,296.95966297]
[1745590053982,43.60099584,154.64,154.57,296.95966297]
[1745590054483,6.4657,154.58,154.57,296.95966297]
[1745590055186,6.4654,154.59,154.57,296.95966297]
[1745590055381,26.76,154.6,154.57,296.95966297]
[1745590055582,88.76,154.6,154.57,296.95966297]
[1745590055882,26.76,154.6,154.57,296.95966297]
[1745590056284,6.4657,154.58,154.57,296.95966297]
[1745590056985,6.4657,154.58,154.57,123.76721596]
[1745590057882,6.4657,154.58,154.57,61.76721596]
[1745590058585,33.2257,154.58,154.57,51.90521596]
[1745590058884,95.2257,154.58,154.57,20.95051596]
[1745590059085,95.2257,154.58,154.57,1.27171596]
[1745590059284,95.2257,154.58,154.57,1.596e-05]
[1745590061786,6.4673,154.55,154.51,6.4684]
[1745590062086,88.76,154.58,154.49,26.98458965]
[1745590062286,115.74458965,154.58,154.46,492.30458965]
[1745590063487,6.4681,154.53,154.46,492.30458965]
[1745590064389,26.76,154.54,154.46,492.30458965]
[1745590064891,26.76,154.54,154.46,519.06458965]
[1745590065189,26.76,154.54,154.49,26.98458965]
[1745590065486,26.76,154.57,154.49,26.98458965]
[1745590065988,6.4667,154.56,154.53,6.4678]
[1745590066389,62.0,154.58,154.54,6.4672]
[1745590066884,62.0,154.58,154.52,26.98458965]
[1745590067288,62.0,154.58,154.55,26.98458965]
[1745590067490,62.0,154.58,154.56,6.4663]
[1745590067881,26.76,154.6,154.56,6.4663]
[1745590068085,6.4658,154.58,154.55,33.45118965]
[1745590068285,26.76,154.6,154.55,26.98458965]
[1745590069090,26.76,154.6,154.52,26.98458965]
[1745590069289,26.76,154.6,154.51,1.887]
[1745590070090,6.4656,154.59,154.56,6.4663]
[1745590070791,62.0,154.58,154.56,6.4663]
[1745590071593,62.0,154.58,154.55,6.4668]
[1745590071992,26.76,154.6,154.51,1.887]